bitfinex-derivatives/quotes_BTCF0:USTF0_20251208
["timestamp","ask_amount","ask_price","bid_price","bid_amount"]
[1765166960833,0.05956,91123.0,91122.0,0.07180455]
[1765166962028,0.05956,91123.0,91122.0,0.07180455]
[1765166962229,0.05956,91123.0,91122.0,0.05551455]
[1765166967643,0.05956,91123.0,91122.0,0.00116455]
[1765166968843,0.05956,91123.0,91122.0,0.05707455]
[1765166971027,0.05956,91123.0,91122.0,0.07336455]
[1765166977037,0.003,91123.0,91122.0,0.07336455]
[1765166978044,0.00016455,91141.0,91140.0,0.0722]
[1765166978045,0.05672455,91141.0,91140.0,0.0722]
[1765166978245,0.08110948,91141.0,91140.0,0.0722]
[1765166979248,0.09510948,91141.0,91140.0,0.0732]
[1765166979543,0.07072455,91141.0,91140.0,0.0732]
[1765166980445,0.09508528,91141.0,91140.0,0.0732]
[1765166981033,0.08808528,91141.0,91140.0,0.05691]
[1765166981435,0.08308528,91141.0,91140.0,0.05591]
[1765166981739,0.08408528,91141.0,91140.0,0.05591]
[1765166982639,0.09505748,91141.0,91140.0,0.05591]
[1765166984956,0.08408528,91141.0,91140.0,0.05591]
[1765166986440,0.08408528,91141.0,91140.0,0.07383]
[1765166987050,0.08408528,91141.0,91140.0,0.05591]
[1765166989249,0.08408528,91141.0,91133.0,0.0109731]
[1765166989454,0.05659,91134.0,91133.0,0.05892]
[1765166991150,0.05759,91134.0,91133.0,0.05892]
[1765166992251,0.02912,91134.0,91133.0,0.05892]
[1765166992451,0.001,91134.0,91133.0,0.05892]
[1765166994256,0.05759,91134.0,91133.0,0.05892]
[1765166994456,0.02912,91134.0,91133.0,0.05892]
[1765166995152,0.05759,91134.0,91133.0,0.05892]
[1765166996950,0.02912,91134.0,91133.0,0.05892]
[1765166997355,0.05759,91134.0,91133.0,0.05892]
[1765166999656,0.001,91134.0,91133.0,0.05892]
[1765167004560,0.00016455,91141.0,91140.0,0.0840523]
[1765167005852,0.00216455,91141.0,91140.0,0.0840523]
[1765167006365,0.00416455,91141.0,91140.0,0.0840523]
[1765167011154,0.0109699,91160.0,91159.0,0.05859]
[1765167011155,0.05676,91160.0,91159.0,0.05859]
[1765167012166,0.05555423,91166.0,91165.0,0.05713]
[1765167012469,0.0662472,91183.0,91182.0,0.05713]
[1765167012658,0.07922929,91183.0,91182.0,0.05713]
[1765167012855,0.07922929,91183.0,91182.0,0.06824797]
[1765167013068,0.05528,91183.0,91182.0,0.06824797]
[1765167013564,0.05528,91183.0,91182.0,0.07921517]
[1765167013772,0.05528,91183.0,91182.0,0.09687517]
[1765167014162,0.05728,91183.0,91182.0,0.09687517]
[1765167015070,0.05728,91183.0,91182.0,0.09887517]
[1765167015563,0.05528,91183.0,91182.0,0.09887517]
[1765167015771,0.05528,91183.0,91182.0,0.10187517]
[1765167016163,0.05528,91183.0,91182.0,0.10887517]
[1765167016773,0.05544455,91192.0,91191.0,0.05713]
[1765167017861,0.02783455,91192.0,91191.0,0.05713]
[1765167018074,0.00016455,91192.0,91191.0,0.05713]
[1765167018284,0.05544455,91192.0,91191.0,0.05713]
[1765167019076,0.05544455,91192.0,91191.0,0.05913]
[1765167019376,0.00016455,91192.0,91191.0,0.05913]
[1765167019562,0.00016455,91192.0,91191.0,0.06413]
[1765167019969,0.00016455,91192.0,91191.0,0.05913]
[1765167020173,0.00016455,91192.0,91191.0,0.06713]
[1765167020468,0.00016455,91192.0,91191.0,0.06513]
[1765167020668,0.00016455,91192.0,91191.0,0.06813]
[1765167021677,0.02783455,91192.0,91191.0,0.06813]
[1765167022066,0.05544455,91192.0,91191.0,0.06813]
[1765167022668,0.00016455,91192.0,91191.0,0.06813]
[1765167022867,0.02783455,91192.0,91191.0,0.06813]
[1765167025767,0.05544455,91192.0,91191.0,0.011]
[1765167026779,0.05544455,91192.0,91191.0,0.03823]
[1765167027380,0.05544455,91192.0,91191.0,0.06513]
[1765167028081,0.05644455,91192.0,91191.0,0.008]
[1765167028285,0.05528,91186.0,91185.0,0.0680969]
[1765167029579,0.05528,91186.0,91185.0,0.0700969]
[1765167031181,0.05528,91186.0,91185.0,0.05913]
[1765167035688,0.05528,91186.0,91185.0,0.07679]
[1765167038183,0.00016455,91192.0,91191.0,0.05713]
[1765167038883,0.02783455,91192.0,91191.0,0.05713]
[1765167039378,0.02883455,91192.0,91191.0,0.05713]
[1765167039580,0.05644455,91192.0,91191.0,0.05713]
[1765167040188,0.00116455,91192.0,91191.0,0.05713]
[1765167040693,0.00216455,91192.0,91191.0,0.05713]
[1765167041089,0.02983455,91192.0,91191.0,0.05713]
[1765167042390,0.00216455,91192.0,91191.0,0.05713]
[1765167043493,0.02933455,91192.0,91191.0,0.05713]
[1765167043694,0.05807455,91192.0,91191.0,0.05713]
[1765167048694,0.05807455,91192.0,91191.0,0.11629562]
[1765167049597,0.05807455,91192.0,91191.0,0.05713]
[1765167050590,0.00216455,91192.0,91191.0,0.11629562]
[1765167052602,0.00216455,91192.0,91191.0,0.05713]
[1765167052990,0.05807455,91192.0,91191.0,0.05713]
[1765167053798,0.05591,91190.0,91189.0,0.08682653]
[1765167053997,0.05591,91190.0,91180.0,0.15121773]
[1765167053998,0.05591,91188.0,91187.0,0.05919653]
[1765167054195,0.0668771,91183.0,91182.0,0.08682653]
[1765167054505,0.0668771,91183.0,91173.0,0.07914582]
[1765167054506,0.05591,91179.0,91178.0,0.08682653]
[1765167055090,0.05591,91179.0,91178.0,0.02763]
[1765167055307,0.05591,91179.0,91178.0,0.05523]
[1765167055813,0.05591,91179.0,91178.0,0.05823]
[1765167056505,0.05591,91179.0,91178.0,0.06623]
[1765167057202,0.05591,91179.0,91178.0,0.05823]
[1765167057588,0.05591,91179.0,91178.0,0.05523]
[1765167057795,0.05691,91179.0,91178.0,0.05523]
[1765167058690,0.05791,91179.0,91178.0,0.05523]
[1765167059194,0.05691,91179.0,91178.0,0.05523]
[1765167060008,0.05691,91179.0,91178.0,0.05623]
[1765167060911,0.05591,91179.0,91178.0,0.05623]
[1765167061098,0.05691,91179.0,91178.0,0.05623]
[1765167061799,0.05691,91179.0,91178.0,0.001]
[1765167061999,0.05729,91177.0,91176.0,0.03921017]
[1765167062203,0.05729,91177.0,91176.0,0.05592]
[1765167063110,0.05729,91177.0,91176.0,0.05692]
[1765167063499,0.05729,91177.0,91176.0,0.07358]
[1765167063697,0.05729,91177.0,91176.0,0.07258]
[1765167064208,0.05829,91177.0,91176.0,0.07258]
[1765167065311,0.05829,91177.0,91176.0,0.07358]
[1765167065513,0.03015,91177.0,91176.0,0.09560161]
[1765167065715,0.05829,91177.0,91176.0,0.09560161]
[1765167068519,0.05829,91177.0,91176.0,0.08463361]
[1765167069416,0.03015,91177.0,91176.0,0.08463361]
[1765167069720,0.010965,91201.0,91191.0,0.05592]
[1765167070518,0.02931455,91192.0,91191.0,0.05592]
[1765167070922,0.03231455,91192.0,91191.0,0.05592]
[1765167071319,0.00316455,91192.0,91191.0,0.05592]
[1765167071720,0.06045455,91192.0,91191.0,0.05592]
[1765167071921,0.06545455,91192.0,91191.0,0.05592]
[1765167072526,0.00816455,91192.0,91191.0,0.05592]
[1765167075537,0.03576455,91192.0,91191.0,0.05592]
[1765167075830,0.00816455,91192.0,91191.0,0.05592]
[1765167076930,0.03576455,91192.0,91191.0,0.05592]
[1765167078229,0.00816455,91192.0,91191.0,0.05592]
[1765167080233,0.06428455,91192.0,91191.0,0.05592]
[1765167083329,0.00816455,91192.0,91191.0,0.05592]
[1765167084623,0.03576455,91192.0,91191.0,0.05592]
[1765167084830,0.06428455,91192.0,91191.0,0.05592]
[1765167085132,0.03576455,91192.0,91191.0,0.05592]
[1765167085329,0.06428455,91192.0,91191.0,0.05592]
[1765167087640,0.03576455,91192.0,91191.0,0.05592]
[1765167087845,0.00816455,91192.0,91191.0,0.05592]
[1765167089444,0.03576455,91192.0,91191.0,0.05592]
[1765167092351,0.06428455,91192.0,91191.0,0.05592]
[1765167097344,0.0276,91189.0,91188.0,0.05907871]
[1765167097548,0.05612,91180.0,91179.0,0.04810796]
[1765167097749,0.05612,91179.0,91178.0,0.05747]
[1765167098350,0.05612,91179.0,91178.0,0.02881]
[1765167098548,0.05612,91177.0,91176.0,0.06852361]
[1765167100851,0.05712,91177.0,91176.0,0.06852361]
[1765167112259,0.05712,91177.0,91176.0,0.08494361]
[1765167113158,0.001,91177.0,91176.0,0.08494361]
[1765167118564,0.05914,91177.0,91176.0,0.08494361]
[1765167120557,0.001,91177.0,91176.0,0.08494361]
[1765167121564,0.00016455,91192.0,91176.0,0.08494361]
[1765167121768,0.0408653,91199.0,91198.0,0.05659]
[1765167121969,0.08208527,91199.0,91198.0,0.05659]
[1765167122166,0.05218527,91199.0,91198.0,0.05659]
[1765167122370,0.0109643,91207.0,91206.0,0.05659]
[1765167122371,0.0691043,91207.0,91206.0,0.05659]
[1765167122571,0.09305287,91207.0,91206.0,0.05659]
[1765167123659,0.08708857,91207.0,91206.0,0.05659]
[1765167123865,0.09808857,91207.0,91206.0,0.05659]
[1765167124368,0.07414,91207.0,91206.0,0.05659]
[1765167128072,0.04424,91207.0,91206.0,0.05659]
[1765167128370,0.07385,91207.0,91206.0,0.05659]
[1765167128766,0.016,91207.0,91206.0,0.05659]
[1765167129769,0.01544492,91207.0,91206.0,0.05659]
[1765167129970,0.02781455,91216.0,91215.0,0.07317]
[1765167130864,0.00016455,91216.0,91215.0,0.07317]
[1765167131469,0.02781455,91216.0,91215.0,0.07317]
[1765167131672,0.05742455,91216.0,91215.0,0.07317]
[1765167131866,0.06042455,91216.0,91215.0,0.07317]
[1765167132071,0.06642455,91216.0,91215.0,0.07317]
[1765167135777,0.06642455,91216.0,91215.0,0.0568]
[1765167135975,0.05828,91207.0,91206.0,0.12839086]
[1765167136182,0.05828,91207.0,91206.0,0.05626]
[1765167136567,0.05828,91207.0,91206.0,0.02718]
[1765167136768,0.05828,91203.0,91202.0,0.10052588]
[1765167137581,0.05828,91203.0,91202.0,0.0672248]
[1765167138078,0.002,91207.0,91206.0,0.0109644]
[1765167138285,0.03135,91207.0,91206.0,0.0672244]
[1765167138586,0.05828,91207.0,91206.0,0.05626]
[1765167139379,0.06028,91207.0,91206.0,0.05626]
[1765167140378,0.06128,91207.0,91206.0,0.05626]
[1765167142785,0.05828,91201.0,91200.0,0.07268]
[1765167144482,0.06028,91207.0,91206.0,0.05626]
[1765167144891,0.05828,91207.0,91206.0,0.05626]
[1765167145591,0.069245,91201.0,91200.0,0.05626]
[1765167148092,0.05828,91198.0,91197.0,0.02734455]
[1765167148390,0.05828,91198.0,91197.0,0.00016455]
[1765167148590,0.08203878,91198.0,91197.0,0.00016455]
[1765167149490,0.08203878,91198.0,91197.0,0.00116455]
[1765167149891,0.08203878,91198.0,91197.0,0.02834455]
[1765167150095,0.08303878,91198.0,91197.0,0.05642455]
[1765167150394,0.08703878,91198.0,91197.0,0.05642455]
[1765167150795,0.08703878,91198.0,91197.0,0.02734455]
[1765167151391,0.08703878,91198.0,91197.0,0.05642455]
[1765167151593,0.08603878,91198.0,91197.0,0.05642455]
[1765167151890,0.08503878,91198.0,91197.0,0.05642455]
[1765167152097,0.08603878,91198.0,91197.0,0.05642455]
[1765167152789,0.08503878,91198.0,91197.0,0.05642455]
[1765167153192,0.003,91198.0,91197.0,0.05642455]
[1765167153392,0.05828,91209.0,91198.0,0.0109653]
[1765167153598,0.0692444,91206.0,91205.0,0.05626]
[1765167153802,0.09300031,91206.0,91205.0,0.05626]
[1765167155291,0.09500031,91206.0,91205.0,0.05626]
[1765167161005,0.010965,91201.0,91200.0,0.05626]
[1765167161296,0.05828,91198.0,91197.0,0.05642455]
[1765167163103,0.05828,91198.0,91197.0,0.05742455]
[1765167163295,0.05828,91198.0,91197.0,0.05842455]
[1765167163494,0.08197224,91198.0,91197.0,0.05842455]
[1765167164004,0.08197224,91198.0,91197.0,0.05742455]
[1765167164506,0.05828,91198.0,91197.0,0.05742455]
[1765167164798,0.08197683,91198.0,91197.0,0.05642455]
[1765167169694,0.08197683,91198.0,91197.0,0.00016455]
[1765167170099,0.05727,91181.0,91180.0,0.14652086]
[1765167170300,0.05727,91181.0,91180.0,0.07439]
[1765167170804,0.05727,91181.0,91180.0,0.11627546]
[1765167171015,0.05727,91181.0,91180.0,0.05714]
[1765167171504,0.05727,91181.0,91180.0,0.06114]
[1765167172093,0.05727,91181.0,91180.0,0.07839]
[1765167172298,0.05727,91181.0,91180.0,0.07439]
[1765167172499,0.05827,91181.0,91180.0,0.07439]
[1765167173007,0.05727,91181.0,91180.0,0.07439]
[1765167176915,0.08866531,91190.0,91174.0,0.05913546]
[1765167176916,0.0682381,91175.0,91174.0,0.05714]
[1765167178508,0.0682381,91175.0,91174.0,0.05814]
[1765167178717,0.0682381,91175.0,91174.0,0.05914]
[1765167179013,0.0682381,91175.0,91174.0,0.05814]
[1765167179206,0.0682381,91175.0,91174.0,0.05914]
[1765167180615,0.10829399,91175.0,91174.0,0.002]
[1765167181714,0.05576,91172.0,91171.0,0.00016445]
[1765167181914,0.07944589,91172.0,91171.0,0.00016445]
[1765167182814,0.05576,91172.0,91171.0,0.00016445]
[1765167184114,0.06076,91172.0,91171.0,0.00016445]
[1765167184914,0.06176,91172.0,91171.0,0.00016445]
[1765167185320,0.08540067,91172.0,91171.0,0.00016445]
[1765167185715,0.08540067,91172.0,91150.0,0.14689086]
[1765167185716,0.05576,91151.0,91150.0,0.14689086]
[1765167186018,0.05576,91151.0,91150.0,0.07476]
[1765167186618,0.05576,91151.0,91150.0,0.08597249]
[1765167187223,0.05576,91151.0,91150.0,0.09897249]
[1765167188020,0.05576,91151.0,91150.0,0.09497249]
[1765167188322,0.05576,91151.0,91150.0,0.08797249]
[1765167190616,0.00016456,91160.0,91159.0,0.02886]
[1765167190819,0.06689446,91160.0,91159.0,0.05751]
[1765167191824,0.06889446,91160.0,91159.0,0.05751]
[1765167192524,0.06989446,91160.0,91159.0,0.05751]
[1765167193524,0.06789446,91160.0,91159.0,0.05751]
[1765167195927,0.05926456,91160.0,91159.0,0.05751]
[1765167196327,0.05826456,91160.0,91159.0,0.05751]
[1765167196528,0.05926456,91160.0,91159.0,0.05751]
[1765167196724,0.02986456,91160.0,91159.0,0.05751]
[1765167196928,0.00016456,91160.0,91159.0,0.05751]
[1765167197726,0.00016456,91160.0,91159.0,0.05851]
[1765167198520,0.00016456,91160.0,91159.0,0.05951]
[1765167201422,0.05923456,91160.0,91159.0,0.05951]
[1765167201815,0.06904456,91160.0,91159.0,0.002]
[1765167202020,0.070041,91151.0,91150.0,0.05906]
[1765167204232,0.070041,91151.0,91150.0,0.07659]
[1765167204429,0.070041,91151.0,91150.0,0.07759]
[1765167204626,0.070041,91151.0,91150.0,0.07859]
[1765167207725,0.05907,91151.0,91150.0,0.07859]
[1765167208829,0.02967,91151.0,91150.0,0.07859]
[1765167209035,0.0109704,91156.0,91150.0,0.07859]
[1765167209036,0.0700404,91156.0,91155.0,0.07659]
[1765167209235,0.09405479,91156.0,91155.0,0.07659]
[1765167210529,0.09605479,91156.0,91155.0,0.07659]
[1765167211534,0.09405479,91156.0,91155.0,0.07659]
[1765167211834,0.09605479,91156.0,91155.0,0.07659]
[1765167213030,0.09405479,91156.0,91155.0,0.07659]
[1765167213227,0.09505479,91156.0,91155.0,0.07659]
[1765167213738,0.09405479,91156.0,91155.0,0.07659]
[1765167213939,0.09605479,91156.0,91155.0,0.05906]
[1765167219027,0.09605479,91156.0,91155.0,0.07659]
[1765167222844,0.03698479,91156.0,91155.0,0.07659]
[1765167223041,0.06516479,91156.0,91155.0,0.07659]
[1765167223242,0.09465479,91156.0,91155.0,0.07659]
[1765167223445,0.09365479,91156.0,91155.0,0.07659]
[1765167224044,0.09265479,91156.0,91155.0,0.07659]
[1765167225440,0.09365479,91156.0,91155.0,0.07659]
[1765167225944,0.09265479,91156.0,91155.0,0.07659]
[1765167226149,0.09365479,91156.0,91155.0,0.07659]
[1765167229046,0.09265479,91156.0,91155.0,0.07659]
[1765167229251,0.09365479,91156.0,91155.0,0.07659]
[1765167231754,0.09365479,91156.0,91155.0,0.05906]
[1765167231946,0.09265479,91156.0,91155.0,0.05906]
[1765167232153,0.09365479,91156.0,91155.0,0.05906]
[1765167232956,0.09265479,91156.0,91155.0,0.05906]
[1765167233157,0.09465479,91156.0,91155.0,0.05906]
[1765167238660,0.09265479,91156.0,91155.0,0.05906]
[1765167238859,0.09465479,91156.0,91155.0,0.05906]
[1765167241864,0.09265479,91156.0,91155.0,0.05906]
[1765167242058,0.02401439,91156.0,91155.0,0.05906]
[1765167242465,0.01113446,91160.0,91159.0,0.05621]
[1765167242658,0.04014446,91160.0,91159.0,0.05621]
[1765167242858,0.06421299,91160.0,91159.0,0.05621]
[1765167243259,0.09197299,91160.0,91159.0,0.05621]
[1765167243863,0.05324309,91160.0,91159.0,0.05621]
[1765167244269,0.05324309,91160.0,91159.0,0.05721]
[1765167244456,0.02423309,91160.0,91159.0,0.05721]
[1765167245662,0.00016456,91160.0,91159.0,0.05721]
[1765167246354,0.0109686,91171.0,91159.0,0.05721]
[1765167246355,0.0109686,91171.0,91170.0,0.05621]
[1765167246563,0.03501528,91171.0,91170.0,0.05621]
[1765167246872,0.06402528,91171.0,91170.0,0.05621]
[1765167247059,0.02404668,91171.0,91170.0,0.05621]
[1765167247261,0.0109681,91175.0,91174.0,0.05621]
[1765167247461,0.09780404,91208.0,91179.0,0.05621]
[1765167247462,0.01113216,91180.0,91179.0,0.05621]
[1765167247668,0.03512671,91180.0,91179.0,0.05621]
[1765167248068,0.06413671,91180.0,91179.0,0.05621]
[1765167248269,0.04014216,91180.0,91179.0,0.05621]
[1765167248975,0.04714216,91180.0,91179.0,0.05621]
[1765167249274,0.04914216,91180.0,91179.0,0.05621]
[1765167249475,0.00916456,91180.0,91179.0,0.05621]
[1765167250269,0.06593456,91180.0,91179.0,0.05621]
[1765167263981,0.0109683,91173.0,91172.0,0.05611]
[1765167264189,0.0674083,91173.0,91172.0,0.05611]
[1765167265090,0.0734083,91173.0,91172.0,0.05611]
[1765167265285,0.0169683,91173.0,91172.0,0.05611]
[1765167265485,0.0447583,91173.0,91172.0,0.05611]
[1765167265902,0.0169683,91173.0,91172.0,0.05611]
[1765167266895,0.0447583,91173.0,91172.0,0.05611]
[1765167267090,0.0734083,91173.0,91172.0,0.05611]
[1765167268289,0.0674093,91165.0,91164.0,0.07242]
[1765167268896,0.0674093,91165.0,91164.0,0.05611]
[1765167269397,0.0674093,91165.0,91164.0,0.02769]
[1765167269697,0.0694093,91165.0,91164.0,0.02769]
[1765167269999,0.0694093,91165.0,91164.0,0.05611]
[1765167270000,0.09338311,91165.0,91164.0,0.05611]
[1765167270699,0.0694093,91165.0,91164.0,0.05611]
[1765167270901,0.05644,91162.0,91161.0,0.05627456]
[1765167273789,0.06044,91162.0,91161.0,0.05627456]
[1765167275603,0.06044,91162.0,91161.0,0.00016456]
[1765167275808,0.06044,91162.0,91161.0,0.05627456]
[1765167276002,0.05944,91162.0,91161.0,0.05627456]
[1765167276300,0.06044,91162.0,91161.0,0.05627456]
[1765167276507,0.08441883,91162.0,91161.0,0.00016456]
[1765167277709,0.08437249,91162.0,91161.0,0.00016456]
[1765167278310,0.06044,91162.0,91161.0,0.00016456]
[1765167279009,0.05944,91162.0,91161.0,0.00016456]
[1765167279211,0.06044,91162.0,91161.0,0.00016456]
[1765167279411,0.05744,91162.0,91161.0,0.05627456]
[1765167279611,0.06144,91162.0,91161.0,0.05627456]
[1765167279818,0.06044,91162.0,91161.0,0.05627456]
[1765167280110,0.06144,91162.0,91161.0,0.05627456]
[1765167280616,0.06044,91162.0,91161.0,0.05627456]
[1765167280927,0.06144,91162.0,91161.0,0.05627456]
[1765167281106,0.05744,91162.0,91161.0,0.05627456]
[1765167281308,0.06144,91162.0,91161.0,0.05627456]
[1765167282611,0.05744,91162.0,91161.0,0.05627456]
[1765167282910,0.06044,91162.0,91161.0,0.05627456]
[1765167287206,0.06044,91162.0,91161.0,0.02785456]
[1765167287707,0.06044,91162.0,91161.0,0.00016456]
[1765167288204,0.06044,91162.0,91161.0,0.02834456]
[1765167289110,0.05744,91162.0,91161.0,0.02834456]
[1765167289309,0.06044,91162.0,91161.0,0.02834456]
[1765167290216,0.05744,91162.0,91161.0,0.02834456]
[1765167290514,0.06144,91162.0,91161.0,0.02834456]
[1765167290716,0.06144,91162.0,91161.0,0.05806456]
[1765167291414,0.08537645,91162.0,91161.0,0.05806456]
[1765167291619,0.08437645,91162.0,91161.0,0.05806456]
[1765167291919,0.06144,91162.0,91161.0,0.05806456]
[1765167292119,0.05744,91162.0,91161.0,0.05806456]
[1765167292316,0.08538091,91162.0,91161.0,0.05806456]
[1765167292716,0.08138091,91162.0,91161.0,0.05806456]
[1765167293019,0.08438091,91162.0,91161.0,0.05806456]
[1765167293212,0.08338091,91162.0,91161.0,0.05806456]
[1765167293413,0.08438091,91162.0,91161.0,0.05806456]
[1765167298321,0.08138091,91162.0,91161.0,0.05806456]
[1765167298527,0.08238091,91162.0,91161.0,0.00016456]
[1765167299817,0.05631,91153.0,91152.0,0.1155528]
[1765167300124,0.05631,91153.0,91152.0,0.1321928]
[1765167300125,0.0672807,91153.0,91152.0,0.1321928]
[1765167300325,0.0109707,91153.0,91152.0,0.1321928]
[1765167300827,0.0109707,91153.0,91152.0,0.07454]
[1765167301028,0.0349652,91153.0,91152.0,0.07554]
[1765167301428,0.0349652,91153.0,91152.0,0.07654]
[1765167301725,0.0803045,91153.0,91152.0,0.0875109]
[1765167301921,0.0239945,91153.0,91152.0,0.07654]
[1765167302122,0.0384306,91155.0,91154.0,0.0579]
[1765167302329,0.06243772,91155.0,91154.0,0.0579]
[1765167302521,0.09128772,91155.0,91154.0,0.0579]
[1765167304525,0.09128772,91155.0,91154.0,0.0589]
[1765167305123,0.09128772,91155.0,91154.0,0.0579]
[1765167305429,0.09128772,91155.0,91154.0,0.0589]
[1765167306030,0.09228772,91155.0,91154.0,0.0579]
[1765167307440,0.09128772,91155.0,91154.0,0.0579]
[1765167307641,0.09228772,91155.0,91154.0,0.0579]
[1765167311241,0.09128772,91155.0,91154.0,0.0579]
[1765167311439,0.09228772,91155.0,91154.0,0.0579]
[1765167311840,0.09128772,91155.0,91154.0,0.0589]
[1765167313245,0.06243772,91155.0,91154.0,0.0589]
[1765167313442,0.02400712,91155.0,91154.0,0.0589]
[1765167313745,0.00016456,91162.0,91161.0,0.05817]
[1765167314239,0.02433451,91162.0,91161.0,0.05817]
[1765167314443,0.00016456,91162.0,91161.0,0.05817]
[1765167315144,0.00316456,91162.0,91161.0,0.05817]
[1765167315541,0.00016456,91162.0,91161.0,0.05917]
[1765167319844,0.05826456,91162.0,91161.0,0.05917]
[1765167324455,0.03003456,91162.0,91161.0,0.05917]
[1765167324655,0.00016456,91162.0,91161.0,0.05917]
[1765167325854,0.00016456,91162.0,91161.0,0.0701398]
[1765167326965,0.03003456,91162.0,91161.0,0.0701398]
[1765167327462,0.00016456,91162.0,91161.0,0.0701398]
[1765167327662,0.03003456,91162.0,91161.0,0.0701398]
[1765167328265,0.00016456,91162.0,91161.0,0.0701398]
[1765167332561,0.03003456,91162.0,91161.0,0.05917]
[1765167332763,0.05826456,91162.0,91161.0,0.05917]
[1765167333371,0.03003456,91162.0,91161.0,0.05917]
[1765167334764,0.00016456,91162.0,91161.0,0.05917]
[1765167336169,0.03003456,91162.0,91161.0,0.05917]
[1765167336876,0.00016456,91162.0,91161.0,0.05917]
[1765167337074,0.00016456,91162.0,91161.0,0.0701398]
[1765167338977,0.05826456,91162.0,91161.0,0.05917]
[1765167342073,0.03003456,91162.0,91161.0,0.05917]
[1765167342481,0.05935456,91162.0,91161.0,0.11833285]
[1765167343483,0.05935456,91162.0,91161.0,0.05917]
[1765167348786,0.03003456,91162.0,91161.0,0.05917]
[1765167348989,0.05935456,91162.0,91161.0,0.05917]
[1765167350590,0.08362107,91162.0,91161.0,0.05917]
[1765167355786,0.02443107,91162.0,91161.0,0.05917]
[1765167357796,0.02443107,91162.0,91161.0,0.11841107]
[1765167360703,0.00016456,91162.0,91161.0,0.05917]
[1765167361406,0.05889456,91162.0,91161.0,0.05917]
[1765167362605,0.05889456,91162.0,91161.0,0.001]
[1765167362807,0.08316124,91162.0,91161.0,0.001]
[1765167363107,0.0697007,91153.0,91152.0,0.0271]
[1765167363307,0.0697007,91153.0,91152.0,0.05638]
[1765167363308,0.09396738,91153.0,91152.0,0.05638]
[1765167363709,0.0697017,91145.0,91144.0,0.1331802]
[1765167363904,0.0697017,91145.0,91144.0,0.07394]
[1765167365402,0.0697017,91145.0,91144.0,0.08094]
[1765167366112,0.0697017,91145.0,91144.0,0.08494]
[1765167369112,0.0697017,91145.0,91144.0,0.06738]
[1765167369312,0.0697017,91145.0,91144.0,0.011]
[1765167370812,0.0697017,91145.0,91144.0,0.03896]
[1765167371215,0.0697017,91145.0,91144.0,0.011]
[1765167373712,0.0697017,91145.0,91144.0,0.06893]
[1765167374314,0.0109715,91148.0,91147.0,0.05793]
[1765167374619,0.02802,91148.0,91147.0,0.05793]
[1765167374815,0.0109709,91152.0,91147.0,0.05793]
[1765167375121,0.0676799,91161.0,91160.0,0.07515]
[1765167375421,0.09209288,91161.0,91160.0,0.07515]
[1765167376121,0.09209288,91161.0,91160.0,0.05793]
[1765167376420,0.09309288,91161.0,91160.0,0.05793]
[1765167377821,0.09409288,91161.0,91160.0,0.05793]
[1765167378320,0.09709288,91161.0,91160.0,0.05793]
[1765167378522,0.09709288,91161.0,91160.0,0.07515]
[1765167379021,0.09709288,91161.0,91160.0,0.05793]
[1765167379823,0.09709288,91161.0,91151.0,0.07223611]
[1765167379824,0.0676809,91152.0,91151.0,0.13016611]
[1765167380011,0.0676809,91152.0,91151.0,0.05793]
[1765167381323,0.0676809,91152.0,91151.0,0.05893]
[1765167384119,0.05687456,91162.0,91161.0,0.05793]
[1765167384324,0.09226514,91162.0,91161.0,0.05793]
[1765167385315,0.06884426,91162.0,91161.0,0.05793]
[1765167385621,0.04015426,91162.0,91161.0,0.05793]
[1765167386027,0.07284426,91162.0,91161.0,0.05793]
[1765167387225,0.07184426,91162.0,91161.0,0.05793]
[1765167387420,0.06784426,91162.0,91161.0,0.05793]
[1765167388630,0.06784426,91162.0,91161.0,0.05893]
[1765167390224,0.05687456,91162.0,91161.0,0.05893]
[1765167390428,0.00016456,91162.0,91161.0,0.05893]
[1765167390637,0.02818456,91162.0,91161.0,0.05893]
[1765167390927,0.05262434,91162.0,91161.0,0.05893]
[1765167391426,0.08131434,91162.0,91161.0,0.05893]
[1765167403334,0.05262434,91162.0,91161.0,0.05893]
[1765167403538,0.08047434,91162.0,91161.0,0.05893]
[1765167408642,0.05728,91180.0,91179.0,0.05713]
[1765167408951,0.08171049,91180.0,91179.0,0.05713]
[1765167410039,0.08371049,91180.0,91179.0,0.05713]
[1765167410243,0.09071049,91180.0,91179.0,0.05713]
[1765167413344,0.06628,91180.0,91179.0,0.05713]
[1765167418144,0.06628,91180.0,91179.0,0.05528]
[1765167418839,0.06628,91180.0,91179.0,0.0662476]
[1765167421156,0.009,91180.0,91179.0,0.0662476]
[1765167421447,0.03795,91180.0,91179.0,0.0662476]
[1765167422851,0.06628,91180.0,91179.0,0.0662476]
[1765167424056,0.06628,91180.0,91179.0,0.05528]
[1765167432264,0.0109676,91179.0,91175.0,0.01101432]
[1765167432560,0.0666786,91171.0,91170.0,0.00016456]
[1765167432761,0.0666803,91157.0,91156.0,0.05626]
[1765167433963,0.05571,91157.0,91156.0,0.05626]
[1765167434164,0.05571,91157.0,91156.0,0.05726]
[1765167435364,0.05571,91157.0,91156.0,0.06914781]
[1765167441764,0.05587456,91166.0,91165.0,0.0672293]
[1765167441966,0.08017324,91166.0,91165.0,0.0672293]
[1765167442667,0.00016456,91166.0,91165.0,0.0672293]
[1765167442863,0.02729456,91166.0,91165.0,0.0672293]
[1765167443068,0.02929456,91166.0,91165.0,0.0672293]
[1765167443372,0.05787456,91166.0,91165.0,0.0672293]
[1765167443667,0.00216456,91166.0,91165.0,0.0672293]
[1765167450264,0.05787456,91166.0,91165.0,0.0672293]
[1765167450666,0.02929456,91166.0,91165.0,0.0672293]
[1765167452068,0.02929456,91166.0,91165.0,0.05626]
[1765167452368,0.05787456,91166.0,91165.0,0.05626]
[1765167454075,0.00216456,91166.0,91165.0,0.05626]
[1765167455478,0.05571,91185.0,91184.0,0.07027]
[1765167455673,0.08002033,91185.0,91184.0,0.07027]
[1765167456083,0.02713,91185.0,91184.0,0.081237]
[1765167456276,0.0666759,91194.0,91193.0,0.05626]
[1765167456478,0.09098572,91194.0,91193.0,0.05626]
[1765167456978,0.05587456,91203.0,91202.0,0.05626]
[1765167457169,0.08001092,91203.0,91202.0,0.05626]